bitfinex/quotes_ETHUSD_20241004
["timestamp","ask_amount","ask_price","bid_price","bid_amount"]
[1728054597725,0.65542839,2392.8,2392.5,4.17966]
[1728054598266,4.17945,2392.7,2392.3,4.18003]
[1728054598775,4.1572673,2392.7,2392.3,4.18003]
[1728054599122,4.83479839,2392.8,2392.0,0.8291]
[1728054599123,0.65542839,2392.8,2392.5,4.17969]
[1728054599367,0.65542839,2392.8,2392.5,0.417969]
[1728054599552,4.17876,2393.1,2392.7,4.17925]
[1728054599925,4.17889,2393.0,2392.6,8.35885]
[1728054600154,4.17887,2393.0,2392.6,4.17938]
[1728054600357,5.56838266,2393.2,2392.7,4.1792]
[1728054600525,5.56838266,2393.2,2392.7,0.5372569]
[1728054600526,1.38985266,2393.2,2392.7,0.5372569]
[1728054600730,1.38985266,2393.2,2392.8,4.17905]
[1728054600961,0.65525266,2393.2,2393.0,4.17881]
[1728054601178,9.09083,2393.5,2393.1,4.17868]
[1728054601179,0.7346,2393.5,2393.1,4.17868]
[1728054601358,4.91215,2393.8,2393.3,4.17818]
[1728054601544,0.65516697,2393.7,2393.6,4.1778]
[1728054601756,0.65516697,2393.7,2393.1,1.218968]
[1728054601757,4.17739,2393.9,2393.4,4.17812]
[1728054601976,4.8324737,2393.9,2393.4,4.17812]
[1728054602283,4.8324737,2393.9,2393.3,4.17821]
[1728054602284,4.17766,2393.7,2393.3,4.17821]
[1728054602451,0.6550837,2393.9,2393.5,4.17787]
[1728054602656,4.8323837,2393.9,2393.3,4.1782]
[1728054602975,4.17748,2393.8,2393.4,4.17806]
[1728054603410,4.8323837,2393.9,2393.5,4.17796]
[1728054603687,4.8323837,2393.9,2393.5,4.17793]
[1728054604198,9.0097937,2393.9,2393.5,4.17793]
[1728054604487,4.8323837,2393.9,2393.5,4.17783]
[1728054604668,1.62949407,2393.9,2393.1,0.8011]
[1728054604875,4.17801,2393.5,2392.9,4.1789]
[1728054605190,0.7346,2393.6,2392.5,4.93025]
[1728054605191,0.7346,2393.1,2392.5,4.93025]
[1728054605481,0.7346,2393.1,2392.8,4.17917]
[1728054605690,0.7346,2393.4,2392.7,4.17925]
[1728054605838,0.7346,2393.7,2393.2,4.17848]
[1728054606042,0.7346,2393.7,2393.3,4.17823]
[1728054606294,4.9123,2393.7,2393.3,4.17823]
[1728054606655,4.91224,2393.7,2393.3,4.17823]
[1728054606857,4.17766,2393.7,2393.3,4.17823]
[1728054607090,4.17766,2393.7,2393.3,8.35645]
[1728054607394,4.17766,2393.7,2393.2,4.17841]
[1728054607603,1.3896837,2393.9,2393.2,4.17841]
[1728054607604,5.5670837,2393.9,2393.2,4.17841]
[1728054607804,4.17749,2393.8,2393.4,4.17815]
[1728054608109,5.5670837,2393.9,2393.0,4.98393]
[1728054608110,0.6550837,2393.9,2393.1,4.17866]
[1728054608395,0.6550837,2393.9,2393.7,4.1775]
[1728054608606,4.17696,2394.1,2393.6,4.17778]
[1728054608827,0.65502049,2394.1,2393.7,4.17754]
[1728054609099,0.65502049,2394.1,2393.5,4.17796]
[1728054609100,4.17724,2394.0,2393.5,4.17796]
[1728054609614,4.17724,2394.0,2393.1,4.17855]
[1728054609615,4.17731,2393.9,2393.1,0.8201]
[1728054609756,4.17731,2393.9,2393.5,4.17791]
[1728054609960,4.17756,2393.8,2393.1,4.99863]
[1728054610206,4.17788,2393.6,2393.2,4.17849]
[1728054610397,1.152356,2393.7,2393.1,9.17722]
[1728054610398,4.91235,2393.7,2393.1,9.17722]
[1728054610556,0.7346,2393.7,2393.1,0.8201]
[1728054610761,4.17741,2393.9,2393.5,4.17793]
[1728054610762,4.17736,2393.9,2393.5,4.17793]
[1728054610956,4.17753,2393.8,2393.2,4.1784]
[1728054611200,4.17753,2393.8,2393.3,4.17819]
[1728054611557,4.17789,2393.6,2393.2,4.17841]
[1728054611763,4.17771,2393.7,2393.2,4.17841]
[1728054611968,4.17794,2393.6,2393.2,4.17841]
[1728054612280,4.17794,2393.6,2393.1,4.99877]
[1728054612507,4.17794,2393.6,2393.2,4.17842]
[1728054612687,4.17766,2393.7,2393.3,4.17825]
[1728054612858,4.17754,2393.8,2393.3,4.17825]
[1728054613062,4.17772,2393.7,2393.3,4.17825]
[1728054613298,0.835526,2393.7,2393.4,4.17814]
[1728054613501,4.17754,2393.8,2393.3,4.17825]
[1728054613700,4.17736,2393.9,2393.4,4.17813]
[1728054613904,4.17736,2393.9,2393.3,4.17831]
[1728054614064,4.17763,2393.7,2393.3,4.17831]
[1728054614284,0.7346,2394.0,2393.1,0.8201]
[1728054614479,4.9129,2393.4,2392.9,4.17895]
[1728054614681,4.17812,2393.5,2393.0,4.17883]
[1728054614988,4.17827,2393.4,2393.0,4.17883]
[1728054615381,4.17787,2393.6,2393.0,4.17883]
[1728054615382,4.17805,2393.5,2393.1,4.17867]
[1728054615586,4.17787,2393.6,2393.1,4.17864]
[1728054615587,4.17793,2393.6,2393.1,4.17864]
[1728054615807,0.7346,2393.8,2392.8,0.8262]
[1728054616012,0.7346,2393.8,2393.4,4.17805]
[1728054616516,4.91217,2393.8,2393.4,4.17805]
[1728054616718,4.17773,2393.7,2393.1,4.17868]
[1728054616926,4.1779,2393.6,2393.0,4.17873]
[1728054617295,4.17816,2393.4,2393.0,4.17873]
[1728054617511,4.17816,2393.4,2392.8,5.00531]
[1728054617727,4.17816,2393.4,2393.0,4.17885]
[1728054617947,0.417816,2393.4,2393.0,4.17885]
[1728054618091,4.17791,2393.6,2393.1,4.17866]
[1728054618092,4.17801,2393.5,2393.1,4.17866]
[1728054618421,4.17791,2393.6,2393.1,4.17853]
[1728054618422,4.17785,2393.6,2393.1,4.17853]
[1728054618590,4.842232,2393.5,2392.5,0.7598]
[1728054618802,4.17826,2393.4,2393.0,4.17878]
[1728054619007,0.7346,2393.6,2393.3,4.1783]
[1728054619215,4.17771,2393.7,2393.3,8.35654]
[1728054619380,0.7346,2393.8,2393.3,4.17824]
[1728054619584,4.17729,2393.9,2393.5,4.17786]
[1728054619825,1.38962049,2394.1,2393.7,4.17747]
[1728054619983,1.38962049,2394.1,2393.8,4.17736]
[1728054620341,0.7346,2394.3,2393.7,4.17761]
[1728054620516,0.6550187,2394.2,2393.6,0.8281]
[1728054620720,0.6550187,2394.2,2393.9,4.17724]
[1728054620922,4.17621,2394.6,2394.0,4.17702]
[1728054621236,7.90523144,2395.0,2393.2,4.842232]
[1728054621237,7.45347318,2395.2,2394.7,4.17588]
[1728054621393,6.37234303,2395.2,2394.7,4.17588]
[1728054621589,6.37225303,2395.2,2394.6,4.17593]
[1728054621789,6.37225303,2395.2,2394.7,4.17578]
[1728054621988,4.17532,2395.1,2394.6,4.17593]
[1728054622190,4.82997359,2395.2,2394.7,4.17588]
[1728054622435,0.65485359,2395.2,2394.8,4.1757]
[1728054622649,0.65485359,2395.2,2395.1,4.17519]
[1728054622934,4.17419,2395.7,2395.0,4.98378]
[1728054622935,4.1745,2395.5,2395.0,4.98378]
[1728054623134,0.65469898,2395.6,2395.2,4.17489]
[1728054623518,4.82903898,2395.6,2395.2,4.17489]
[1728054623836,0.65469898,2395.6,2395.2,4.17489]
[1728054624042,0.65469898,2395.6,2395.1,0.05607007]
[1728054624249,0.65469898,2395.6,2395.3,4.17473]
[1728054624536,0.65469898,2395.6,2395.4,4.17458]
[1728054624691,0.65469898,2395.6,2395.3,0.0560654]
[1728054625093,0.65469898,2395.6,2395.5,4.17449]
[1728054625296,0.65469898,2395.6,2395.5,5.06314838]
[1728054625555,0.1234697,2395.8,2395.5,5.00709]
[1728054625745,0.1234697,2395.8,2395.7,12.016372]
[1728054626037,1.04508274,2396.5,2396.4,4.97792]
[1728054626354,1.04508274,2396.5,2396.4,7.97792]
[1728054626931,1.04508274,2396.5,2396.4,8.39722]
[1728054627566,1.04508274,2396.5,2396.4,13.88576437]
[1728054630643,1.04508274,2396.5,2396.4,14.43576437]
[1728054631524,0.8061,2398.0,2397.6,4.17077]
[1728054631939,0.06879105,2397.9,2397.4,4.17109]
[1728054632150,0.06879105,2397.9,2397.1,4.17169]
[1728054632151,0.06879105,2397.9,2397.6,4.17078]
[1728054632351,0.06879105,2397.9,2397.7,4.17055]
[1728054632594,0.06879105,2397.9,2397.8,4.17048]
[1728054632811,0.06879105,2397.9,2397.8,5.37948]
[1728054633121,0.1184697,2398.2,2398.1,4.16996]
[1728054633281,0.1184697,2398.2,2398.1,4.95966]
[1728054633493,0.0008,2398.9,2398.1,0.7897]
[1728054633776,0.0008,2398.9,2398.7,4.16892]
[1728054634105,0.0008,2398.9,2398.3,4.16949]
[1728054634383,4.16947,2398.9,2398.3,8.33901]
[1728054634679,4.16947,2398.9,2398.6,4.16909]
[1728054634680,0.0008,2398.9,2398.6,4.16909]
[1728054634988,0.0008,2398.9,2398.8,4.16875]
[1728054635784,0.0008,2398.9,2398.8,4.94575]
[1728054638081,0.0008,2398.9,2398.8,0.777]
[1728054638393,0.0008,2398.9,2398.5,4.16924]
[1728054638753,0.0008,2398.9,2398.3,4.99588]
[1728054639080,4.16875,2398.8,2398.3,4.16958]
[1728054639427,4.16875,2398.8,2397.5,4.17095]
[1728054639428,4.16967,2398.3,2397.7,4.94894]
[1728054639691,0.7541,2398.1,2397.4,0.7783]
[1728054639892,0.7541,2398.1,2396.8,5.48854437]
[1728054639893,4.17059,2397.8,2397.3,4.17124]
[1728054640095,4.17076,2397.7,2397.1,4.17158]
[1728054640789,4.2290558,2397.6,2397.0,4.17179]
[1728054640949,4.2290558,2397.6,2396.6,4.93305]
[1728054640950,4.2291458,2397.6,2396.6,0.7605]
[1728054641150,4.2291458,2397.6,2396.8,4.17222]
[1728054641151,4.1712,2397.4,2396.8,4.17222]
[1728054641356,4.17153,2397.2,2396.2,0.7686]
[1728054641556,4.17153,2397.2,2396.7,4.1724]
[1728054641784,0.05737949,2397.1,2396.8,4.17213]
[1728054641999,0.7567,2397.5,2396.8,4.17213]
[1728054642150,0.05677806,2397.0,2396.8,4.17213]
[1728054642496,4.92781,2397.5,2397.0,4.17184]
[1728054642784,4.92781,2397.5,2396.8,8.761443]
[1728054642785,4.17128,2397.4,2396.8,8.761443]
[1728054642988,0.05667612,2397.4,2397.0,4.17187]
[1728054643209,0.05667612,2397.4,2397.1,4.17168]
[1728054643364,0.05667612,2397.4,2396.5,4.17268]
[1728054643365,4.17147,2397.3,2396.7,4.17228]
[1728054643546,0.05639023,2397.3,2397.0,4.17177]
[1728054643750,4.92784,2397.5,2396.7,0.417228]
[1728054643751,0.7567,2397.5,2397.2,4.17152]
[1728054644049,5.48854437,2398.2,2397.3,4.17134]
[1728054644050,4.95634,2397.9,2397.3,4.17134]
[1728054644286,4.17114,2397.5,2396.9,4.17201]
[1728054644535,4.16968,2398.3,2396.4,0.7667]
[1728054644536,0.8238,2397.3,2396.4,0.7667]
[1728054644674,0.8238,2397.3,2396.8,4.17208]
[1728054644876,0.8238,2397.3,2396.6,4.17247]
[1728054644877,4.17153,2397.2,2396.6,4.17244]
[1728054645104,4.17202,2397.0,2396.4,4.17279]
[1728054645396,4.17202,2397.0,2396.1,3.0]
[1728054645397,4.17218,2396.9,2396.2,4.17312]
[1728054645559,4.17218,2396.9,2396.4,4.1729]
[1728054645765,4.17215,2396.9,2396.3,4.17309]
[1728054646151,4.17215,2396.9,2396.2,4.590432]
[1728054646152,4.17215,2396.9,2396.4,8.34573]
[1728054646353,4.99519,2397.3,2396.2,0.417312]
[1728054646354,4.99515,2397.3,2396.2,0.417312]
[1728054646564,4.99515,2397.3,2396.6,4.17247]
[1728054646565,4.17164,2397.2,2396.6,4.17247]
[1728054646790,0.8238,2397.3,2396.9,4.17189]
[1728054647051,0.8238,2397.3,2397.1,4.17166]
[1728054647288,0.8238,2397.3,2397.1,8.34326]
[1728054647593,4.1706,2397.8,2397.2,4.17153]
[1728054647594,4.97847,2397.7,2397.2,4.17153]
[1728054647911,0.8078,2398.1,2397.7,4.1705]
[1728054648196,0.8078,2398.1,2397.3,4.17133]
[1728054648197,0.8078,2398.1,2397.3,0.7553]
[1728054648397,0.8078,2398.1,2396.9,4.172]
[1728054648398,8.34054,2398.0,2397.4,8.34224]
[1728054648699,4.17027,2398.0,2397.4,4.17112]
[1728054648905,4.17064,2397.8,2397.3,4.17129]
[1728054649051,4.17059,2397.8,2397.3,4.17133]
[1728054649398,0.8078,2398.1,2396.5,3.0]
[1728054649399,0.8078,2397.6,2397.1,4.17162]
[1728054649700,0.8078,2398.0,2397.1,0.417162]
[1728054649919,4.17034,2397.9,2397.3,4.17123]
[1728054650207,4.17034,2397.9,2397.3,4.17122]
[1728054650208,4.17049,2397.8,2397.3,4.17122]
[1728054650695,4.17066,2397.7,2397.1,4.17155]
[1728054650856,4.17066,2397.7,2397.2,4.17147]
[1728054651456,4.17066,2397.7,2396.6,0.7553]
[1728054651457,0.8078,2398.0,2396.6,1.1746]
[1728054651768,0.43669488,2397.9,2396.6,1.1746]
[1728054652103,0.43669488,2397.9,2396.5,7.17273]
[1728054652104,0.43669488,2397.9,2397.8,4.17048]
[1728054652605,0.8093,2398.4,2397.7,4.17063]
[1728054652606,0.8093,2398.4,2397.9,4.1702]
[1728054652764,0.8093,2398.4,2397.5,4.17093]
[1728054652765,0.43662305,2398.5,2398.2,4.16966]
[1728054653101,0.43662305,2398.5,2398.1,4.1698]
[1728054653305,0.43662305,2398.5,2398.3,4.16948]
[1728054653488,0.43662305,2398.5,2397.6,4.17077]
[1728054653489,4.60598305,2398.5,2398.0,4.16999]
[1728054654003,4.60601305,2398.5,2398.0,4.16999]
[1728054654185,4.60601305,2398.5,2397.3,0.7619]
[1728054654186,0.8194,2398.2,2397.6,4.1707]
[1728054654501,4.17015,2398.0,2397.4,4.17106]
[1728054654705,4.17041,2397.9,2397.4,4.17106]
[1728054655001,4.17015,2398.0,2397.4,4.17106]
[1728054655002,4.17049,2397.8,2397.4,4.17106]
[1728054655202,4.93756,2397.7,2397.2,4.17152]
[1728054655816,4.1713,2397.4,2396.9,4.17204]
[1728054656024,4.17091,2397.6,2396.5,4.17268]
[1728054656226,0.7668,2397.7,2397.3,4.17127]
[1728054656514,1.260543,2397.7,2397.2,4.17142]
[1728054656714,4.93748,2397.7,2397.2,4.17142]
[1728054656930,0.7668,2397.7,2397.0,4.17181]
[1728054657126,4.17109,2397.5,2397.0,4.17181]
[1728054657314,4.17109,2397.5,2396.6,0.8078]
[1728054657315,0.910881,2397.5,2396.6,0.8078]
[1728054657619,4.17144,2397.3,2396.8,4.17221]
[1728054657818,4.17173,2397.1,2396.6,8.34492]
[1728054657983,0.85584804,2397.2,2396.8,4.17222]
[1728054658181,0.04972592,2397.0,2396.9,4.17189]
[1728054658525,0.8056,2397.2,2396.8,4.17215]
[1728054658678,0.05024027,2397.0,2396.9,4.17205]
[1728054658879,4.17174,2397.1,2396.6,8.34495]
[1728054659101,0.05024027,2397.0,2396.4,4.17282]
[1728054659279,4.22221027,2397.0,2396.4,4.666822]
[1728054659547,4.17197,2397.0,2396.6,4.17257]
[1728054659816,4.97723,2397.2,2396.7,4.17232]
[1728054659817,0.05007153,2396.9,2396.7,4.17232]
[1728054660118,0.8056,2397.2,2396.4,0.494002]
[1728054660422,0.8056,2397.2,2396.8,4.17208]
[1728054660627,0.05032819,2397.1,2396.8,4.17208]
[1728054660834,0.05032819,2397.1,2396.9,4.17204]
[1728054661298,0.05032819,2397.1,2397.0,4.17188]
[1728054661623,4.17135,2397.3,2396.9,4.17204]
[1728054661822,0.05022728,2397.1,2396.9,4.17203]
[1728054662001,4.17135,2397.3,2396.7,4.17238]
[1728054662326,4.17135,2397.3,2396.2,4.94037]
[1728054662327,4.17138,2397.3,2396.2,4.94037]
[1728054662536,4.17178,2397.1,2396.6,4.17248]
[1728054662830,0.8175,2396.9,2396.2,4.17315]
[1728054662987,4.17234,2396.8,2396.3,4.17294]
[1728054663183,4.17258,2396.6,2396.1,4.17334]
[1728054663393,0.8175,2396.9,2396.1,4.17334]
[1728054663394,4.98956,2396.9,2396.4,4.1729]
[1728054663625,0.8175,2396.9,2396.1,0.496814]
[1728054663934,0.7675,2396.9,2396.6,4.17255]
[1728054664235,4.17148,2397.3,2396.8,4.17212]
[1728054664435,4.17162,2397.2,2396.7,4.17238]
[1728054664750,4.17162,2397.2,2396.7,4.17229]
[1728054664751,4.1716,2397.2,2396.7,4.17229]
[1728054665036,4.17172,2397.1,2396.5,4.17264]
[1728054665328,4.17172,2397.1,2396.3,4.17301]
[1728054665329,4.17241,2396.7,2396.3,4.17301]
[1728054665627,0.417172,2397.1,2395.9,4.96854]
[1728054665628,4.17293,2396.4,2396.0,4.17353]
[1728054665838,4.1732,2396.3,2395.8,4.17384]
[1728054666005,4.17328,2396.2,2395.8,4.17384]
[1728054666204,4.1732,2396.3,2395.6,0.7818]
[1728054666408,4.17301,2396.4,2395.9,4.17371]
[1728054666620,4.17269,2396.6,2395.6,0.7818]
[1728054666796,4.17242,2396.7,2396.2,4.17325]
[1728054667152,4.17242,2396.7,2395.6,0.7818]
[1728054667153,4.17318,2396.3,2395.8,4.17394]
[1728054667321,4.17318,2396.3,2395.7,4.17402]
[1728054667322,4.17373,2396.0,2395.5,4.17449]
[1728054667537,0.8233,2396.2,2395.3,4.17472]
[1728054667538,4.17387,2395.9,2395.3,4.17472]
[1728054667693,4.17399,2395.8,2395.3,4.17472]
[1728054667896,4.17354,2396.1,2395.6,4.17422]
[1728054668137,4.17354,2396.1,2395.2,0.7618]
[1728054668336,0.8233,2396.2,2395.5,4.1744]
[1728054668337,4.1737,2396.0,2395.5,4.1744]
[1728054668544,4.17394,2395.9,2395.4,4.17464]
[1728054668695,4.17399,2395.8,2395.4,4.17464]
[1728054669142,0.04870613,2395.7,2395.3,4.668379]
[1728054669310,0.04870613,2395.7,2395.5,4.17449]
[1728054669509,0.04870613,2395.7,2395.6,4.591759]
[1728054669699,4.99674,2396.2,2395.7,4.17411]
[1728054669900,4.99674,2396.2,2395.6,4.591759]
[1728054669901,4.17346,2396.1,2395.6,4.591609]
[1728054670441,0.8233,2396.2,2395.7,4.17404]
[1728054670604,4.17299,2396.4,2395.9,4.17367]
[1728054670806,4.99884,2396.5,2396.1,4.17342]
[1728054671011,4.99884,2396.5,2395.9,4.17369]
[1728054671405,4.1725,2396.7,2396.2,8.34635]
[1728054671602,4.1725,2396.7,2396.3,4.17306]
[1728054671847,4.94556,2396.9,2396.0,4.17348]
[1728054671848,4.17258,2396.6,2396.0,4.17348]
[1728054672010,4.17258,2396.6,2396.0,4.590828]
[1728054672011,4.17289,2396.5,2396.0,4.590828]
[1728054672511,4.17289,2396.5,2396.1,4.17343]
[1728054672737,4.17242,2396.7,2396.1,4.17343]
[1728054673042,4.22153574,2396.6,2396.1,4.17343]
[1728054673248,0.04895574,2396.6,2396.2,4.17325]
[1728054673457,0.04895574,2396.6,2395.9,0.7755]
[1728054673751,0.04895574,2396.6,2396.5,4.17275]
[1728054673906,4.172,2397.0,2396.5,4.17275]
[1728054674106,0.04932321,2396.6,2396.5,4.17275]
[1728054674308,4.17209,2396.9,2396.4,4.17289]
[1728054674592,0.04927339,2396.6,2396.4,0.417289]
[1728054674721,0.04927339,2396.6,2395.9,4.94922]
[1728054674722,4.17231,2396.8,2396.3,4.17309]
[1728054674925,0.049145,2396.5,2396.1,4.17334]
[1728054675125,4.94636,2396.6,2396.1,4.17334]
[1728054675126,9.11902,2396.6,2396.1,4.17334]
[1728054675448,0.04929442,2396.5,2395.9,0.7755]
[1728054675655,0.04929442,2396.5,2396.3,4.17308]
[1728054675947,0.7801,2396.9,2396.4,4.17289]
[1728054676160,0.04916603,2396.4,2396.2,4.1731]
[1728054676341,4.17249,2396.7,2396.3,4.17308]
[1728054676521,4.17249,2396.7,2396.2,4.17326]
[1728054676727,4.2220726,2396.6,2396.2,4.17317]
[1728054677109,4.17275,2396.5,2396.1,4.17343]
[1728054677308,4.17276,2396.5,2395.6,0.7694]
[1728054677516,0.04959812,2396.4,2395.7,0.37694]
[1728054677938,0.7801,2396.9,2396.2,4.1731]
[1728054677939,4.1724,2396.7,2396.2,4.1731]
[1728054678140,4.17289,2396.5,2395.7,4.55093]
[1728054678363,0.8107,2396.3,2395.9,4.17366]
[1728054678666,0.04905731,2396.2,2396.0,4.17361]
[1728054678815,0.04905731,2396.2,2395.9,4.17366]
[1728054679018,0.8107,2396.3,2396.0,4.17362]
[1728054679221,0.04905731,2396.2,2395.8,4.17395]
[1728054679416,0.8107,2396.3,2395.9,4.17365]
[1728054679728,0.8107,2396.3,2395.8,4.17395]
[1728054679729,0.04905731,2396.2,2396.0,4.1735]
[1728054679927,0.04905731,2396.2,2395.9,4.17371]
[1728054680127,4.17328,2396.2,2395.8,4.17382]
[1728054680331,0.04889234,2396.1,2395.8,4.17382]
[1728054680541,0.04889234,2396.1,2395.8,8.3477]
[1728054680821,4.17294,2396.4,2395.9,4.17371]
[1728054681040,4.22245975,2396.3,2395.8,4.17395]
[1728054681445,0.47147572,2396.3,2395.6,4.17419]
[1728054681673,0.7737,2396.2,2395.3,0.7983]
[1728054681959,0.7737,2396.2,2395.9,4.17377]
[1728054682184,0.04867769,2396.1,2395.9,4.17377]
[1728054682390,0.04867769,2396.1,2395.3,0.7983]
[1728054682391,0.04867769,2396.1,2395.8,4.17389]
[1728054682591,0.04867769,2396.1,2395.9,4.17377]
[1728054682750,0.04867769,2396.1,2395.8,8.34777]
[1728054682945,0.04867769,2396.1,2395.8,4.17388]
[1728054683144,4.22213769,2396.1,2395.5,8.34884]
[1728054683408,4.1738,2395.9,2395.5,4.17441]
[1728054683593,4.17365,2396.0,2395.5,4.17436]
[1728054683886,4.17365,2396.0,2395.5,4.17446]
[1728054683887,0.04896882,2395.9,2395.5,4.17446]
[1728054684059,4.22281882,2395.9,2395.5,4.17446]
[1728054684254,4.17397,2395.8,2395.4,4.17458]
[1728054684459,0.04896882,2395.9,2395.5,4.1744]
[1728054684660,0.04871195,2395.7,2395.6,4.17431]
[1728054684843,4.1737,2396.0,2395.5,4.17447]
[1728054685047,4.1737,2396.0,2395.5,8.34888]
[1728054685347,0.04843744,2395.9,2395.5,8.34888]
[1728054685548,4.22227744,2395.9,2395.5,4.17439]
[1728054686572,4.174,2395.8,2395.4,4.17463]
[1728054686789,4.17461,2395.5,2395.1,4.17513]
[1728054686956,0.0482031,2395.4,2395.1,4.17513]
[1728054687854,0.0482031,2395.4,2395.2,4.17491]
[1728054688172,0.7906,2395.7,2395.3,4.17484]
[1728054688351,0.04819354,2395.6,2395.3,4.17484]
[1728054688747,0.04819354,2395.6,2395.2,4.17499]
[1728054688952,0.04819354,2395.6,2395.3,4.17483]
[1728054689151,0.04819354,2395.6,2395.2,4.17499]
[1728054689548,4.22255354,2395.6,2395.2,4.17499]
[1728054690747,4.1745,2395.5,2394.8,4.17556]
[1728054691124,0.04803625,2395.4,2395.3,4.17471]
[1728054691455,0.7808,2396.1,2395.4,0.8007]
[1728054691651,0.7808,2396.1,2395.3,4.17481]
[1728054691652,0.7808,2396.9,2396.1,4.97409]
[1728054691892,1.21758102,2396.9,2396.7,4.17226]
[1728054692145,1.21758102,2396.9,2396.7,4.589486]
[1728054692146,0.43678102,2396.9,2396.7,4.589486]
[1728054692402,4.95231,2397.3,2396.8,4.17219]
[1728054692599,4.95231,2397.3,2396.7,4.589486]
[1728054692802,4.17171,2397.1,2396.5,4.17261]
[1728054693102,4.1719,2397.0,2396.5,4.17261]
[1728054693455,4.1719,2397.0,2396.5,8.34526]
[1728054693653,4.17155,2397.2,2396.6,4.17246]
[1728054693863,4.17155,2397.2,2396.7,4.17238]
[1728054694103,4.17171,2397.1,2396.2,4.17323]
[1728054694259,4.17155,2397.2,2396.7,4.17229]
[1728054694656,4.17153,2397.2,2396.5,4.17266]
[1728054694865,4.17188,2397.0,2396.5,4.17266]
[1728054695195,4.95219,2397.3,2396.8,4.17214]
[1728054695892,4.95219,2397.3,2396.3,0.497393]
[1728054696063,4.95219,2397.3,2396.1,0.8007]
[1728054696064,4.17164,2397.2,2396.7,4.17232]
[1728054696266,4.17171,2397.1,2396.7,4.17232]
[1728054696570,4.17154,2397.2,2396.7,8.34463]
[1728054696788,4.17154,2397.2,2396.7,8.34461]
[1728054696991,4.17173,2397.1,2396.6,4.17255]
[1728054697246,4.17208,2396.9,2396.5,4.1727]
[1728054697358,0.912373,2397.1,2396.7,4.17239]
[1728054697564,4.17178,2397.1,2396.7,4.17239]
[1728054697953,4.17191,2397.0,2396.5,4.17261]
[1728054698197,4.17226,2396.8,2396.4,4.17291]
[1728054698791,4.17242,2396.7,2396.2,8.34637]
[1728054699193,4.1724,2396.7,2396.3,4.173]
[1728054699401,4.1724,2396.7,2396.0,4.17348]
[1728054699402,0.8283,2396.4,2396.0,4.17348]
[1728054699586,0.8283,2396.4,2395.2,4.175]
[1728054699587,5.0013,2396.4,2395.9,4.17377]
[1728054699901,5.0013,2396.4,2395.8,4.17395]
[1728054699902,4.17318,2396.3,2395.8,4.17395]
[1728054700066,4.17318,2396.3,2395.9,4.17375]
[1728054700274,5.090612,2396.3,2395.8,4.17394]
[1728054700597,5.090612,2396.3,2395.8,4.17388]
[1728054700894,5.090612,2396.3,2395.8,4.17395]
[1728054700895,4.17337,2396.2,2395.8,4.17395]
[1728054701103,4.17337,2396.2,2395.7,4.17414]
[1728054701304,5.090542,2396.3,2395.8,4.17388]
[1728054701456,5.1825472,2396.2,2395.4,0.7927]
[1728054701651,4.17336,2396.2,2395.8,4.17393]
[1728054701856,4.17399,2395.8,2395.3,8.34944]
[1728054702098,4.17414,2395.7,2395.3,4.17471]
[1728054702396,4.17414,2395.7,2395.3,4.17482]
[1728054702598,4.17414,2395.7,2395.1,4.17505]
[1728054702599,4.17433,2395.6,2395.1,4.17505]
[1728054702801,4.17433,2395.6,2395.2,4.17501]
[1728054703100,0.04053098,2395.5,2395.2,4.17501]
[1728054703301,0.04053098,2395.5,2394.9,0.8226]
[1728054703302,0.04053098,2395.5,2395.4,4.17466]
[1728054704469,4.17408,2395.8,2395.4,4.17466]
[1728054704675,0.03969267,2395.5,2395.4,4.17466]
[1728054704856,4.17408,2395.8,2395.3,4.17483]
[1728054704857,4.17418,2395.7,2395.3,4.17483]
[1728054705059,0.03979229,2395.5,2395.2,4.17501]
[1728054705267,4.17408,2395.8,2394.9,0.8226]
[1728054705268,4.17408,2395.8,2395.3,4.17474]
[1728054705482,4.99262,2396.0,2395.3,4.17474]
[1728054705483,0.03963494,2395.4,2395.3,4.17474]
[1728054705667,4.99262,2396.0,2395.5,4.17442]
[1728054705668,0.8189,2396.0,2395.5,4.17442]
[1728054705870,0.8189,2396.0,2395.6,4.17431]
[1728054706057,0.04032721,2395.9,2395.6,4.17431]
[1728054706259,0.04032721,2395.9,2395.6,4.17428]
[1728054706497,0.04032721,2395.9,2395.7,4.17405]
[1728054707006,0.04032721,2395.9,2395.6,4.17422]
[1728054707325,0.04032721,2395.9,2395.7,4.17412]
[1728054707904,0.04032721,2395.9,2395.6,4.17422]
[1728054708200,0.04032721,2395.9,2395.6,4.1742]
[1728054708496,0.04032721,2395.9,2395.4,4.17452]
[1728054708701,0.04032721,2395.9,2395.7,4.17402]
[1728054709089,0.04032721,2395.9,2395.8,4.17397]
[1728054709461,0.7533,2396.5,2395.7,4.17402]
[1728054709661,0.7533,2396.5,2396.2,4.17325]
[1728054711000,0.7533,2396.5,2396.1,4.17342]
[1728054711201,0.7533,2396.5,2396.2,4.17326]
[1728054711603,0.7533,2396.5,2396.3,4.17307]
[1728054711901,0.7533,2396.5,2396.2,4.17319]
[1728054712109,4.92605,2396.5,2396.1,4.17342]
[1728054712414,4.17303,2396.4,2396.0,4.17361]
[1728054712621,0.7533,2396.5,2396.1,4.17335]
[1728054712911,0.7533,2396.5,2396.2,4.17318]
[1728054713810,0.7533,2396.5,2396.1,4.17335]
[1728054713811,4.92608,2396.5,2396.1,4.17335]
[1728054714429,4.92608,2396.5,2396.0,4.1736]
[1728054714717,6.49026034,2396.5,2395.5,0.7997]
[1728054714884,5.58039134,2396.5,2396.1,4.17334]
[1728054715619,1.40763134,2396.5,2396.2,4.17318]
[1728054715911,4.17292,2396.4,2396.0,4.17361]